bitfinex-derivatives/quotes_BTCF0:USTF0_20250901
["timestamp","ask_amount","ask_price","bid_price","bid_amount"]
[1756717307718,1.27603982,109630.0,109620.0,0.20327858]
[1756717308207,1.27603982,109630.0,109620.0,0.02534662]
[1756717308407,1.27603982,109630.0,109620.0,0.00113662]
[1756717310018,1.45397178,109630.0,109620.0,0.00113662]
[1756717312219,1.27603982,109630.0,109620.0,0.00113662]
[1756717312522,1.45397178,109630.0,109620.0,0.00113662]
[1756717318022,1.45397178,109630.0,109620.0,0.02536662]
[1756717319428,1.45398187,109630.0,109620.0,0.02536662]
[1756717321136,1.45398187,109630.0,109620.0,0.00113662]
[1756717321337,0.61226187,109630.0,109620.0,0.00113662]
[1756717321633,1.27556991,109630.0,109620.0,0.02536662]
[1756717322229,0.43432991,109630.0,109620.0,0.06179662]
[1756717322434,0.91472991,109630.0,109620.0,1.01766054]
[1756717322634,0.91472991,109630.0,109620.0,0.83972858]
[1756717323731,0.91472991,109630.0,109620.0,0.66179662]
[1756717323936,1.45346187,109630.0,109620.0,0.02536662]
[1756717324329,1.27552991,109630.0,109620.0,0.02536662]
[1756717324636,1.45346187,109630.0,109620.0,0.00113662]
[1756717325638,1.45342187,109630.0,109620.0,0.00113662]
[1756717327838,1.45342187,109630.0,109620.0,0.02536662]
[1756717328042,1.45342187,109630.0,109620.0,0.00113662]
[1756717332538,0.02602,109620.0,109600.0,4e-05]
[1756717332739,1.27152704,109610.0,109600.0,0.41344299]
[1756717332941,1.63232704,109610.0,109600.0,0.40427]
[1756717333144,1.65296252,109610.0,109600.0,0.40427]
[1756717333745,0.81200252,109610.0,109600.0,0.40727]
[1756717334049,0.81200252,109610.0,109600.0,0.4437]
[1756717334345,1.65392252,109610.0,109600.0,0.4437]
[1756717334545,1.63328704,109610.0,109600.0,0.4407]
[1756717334746,1.63328704,109610.0,109600.0,0.4417]
[1756717335540,1.63328704,109610.0,109600.0,0.40527]
[1756717336348,1.811219,109610.0,109600.0,0.41437641]
[1756717336545,1.811219,109610.0,109600.0,0.45080641]
[1756717336740,1.63328704,109610.0,109600.0,0.45080641]
[1756717336946,0.79236704,109610.0,109600.0,0.62873837]
[1756717337146,1.60722704,109610.0,109600.0,0.96997157]
[1756717337347,1.63324704,109610.0,109600.0,0.87873837]
[1756717337740,1.63324704,109610.0,109600.0,0.70080641]
[1756717337946,1.63324704,109610.0,109600.0,0.87873837]
[1756717338449,0.79236704,109610.0,109600.0,0.70080641]
[1756717338655,1.63328704,109610.0,109600.0,0.87873837]
[1756717339249,0.79236704,109610.0,109600.0,0.87873837]
[1756717339450,1.63324704,109610.0,109600.0,0.87873837]
[1756717340948,1.63324704,109610.0,109600.0,0.944241]
[1756717341451,2.061179,109610.0,109600.0,0.39014641]
[1756717341654,4.18766724,109610.0,109580.0,0.06550263]
[1756717341852,1.07746392,109590.0,109580.0,0.06550263]
[1756717342152,1.93689045,109590.0,109570.0,0.09050263]
[1756717342351,1.93689045,109590.0,109570.0,0.06550263]
[1756717342352,0.53873196,109580.0,109570.0,0.06550263]
[1756717343055,0.61173068,109580.0,109570.0,0.06550263]
[1756717343646,0.86173068,109580.0,109560.0,0.08554523]
[1756717343852,1.37957196,109570.0,109560.0,0.08554523]
[1756717345050,1.37957196,109570.0,109560.0,0.06554263]
[1756717345250,1.39831654,109570.0,109560.0,0.06554263]
[1756717345554,1.39835654,109570.0,109560.0,0.06554263]
[1756717345743,1.39835654,109570.0,109560.0,0.09054263]
[1756717346152,1.40035654,109570.0,109560.0,0.09054263]
[1756717347756,1.40035654,109570.0,109560.0,0.12677263]
[1756717347956,0.55947654,109570.0,109560.0,0.12677263]
[1756717348258,1.40035654,109570.0,109560.0,0.12677263]
[1756717348453,1.40035654,109570.0,109560.0,0.09054263]
[1756717350659,0.55947654,109570.0,109560.0,0.08173484]
[1756717350961,1.22246458,109570.0,109560.0,0.89516943]
[1756717351559,0.38154458,109570.0,109560.0,0.8296668]
[1756717351761,1.22246458,109570.0,109560.0,0.8296668]
[1756717352360,1.22246458,109570.0,109560.0,1.00759876]
[1756717352557,1.22246458,109570.0,109560.0,0.8296668]
[1756717353662,0.38154458,109570.0,109560.0,0.8296668]
[1756717353962,1.22246458,109570.0,109560.0,0.8296668]
[1756717355968,1.22246458,109570.0,109560.0,0.8596668]
[1756717357066,1.22246458,109570.0,109560.0,1.1241668]
[1756717358054,0.02074458,109570.0,109560.0,1.66289876]
[1756717358464,0.02074458,109570.0,109560.0,1.75416526]
[1756717360463,0.37952315,109590.0,109560.0,1.84543176]
[1756717360667,1.24312315,109590.0,109580.0,0.23916196]
[1756717360861,1.24312315,109590.0,109580.0,0.61916196]
[1756717361072,0.90307315,109590.0,109580.0,0.61916196]
[1756717363067,0.90407315,109590.0,109580.0,0.88366196]
[1756717363463,0.90399315,109590.0,109580.0,0.88366196]
[1756717363969,0.90299315,109590.0,109580.0,0.88366196]
[1756717364269,0.90499315,109590.0,109580.0,0.88366196]
[1756717365271,1.26579315,109590.0,109580.0,0.88366196]
[1756717366867,1.28668255,109590.0,109580.0,0.88366196]
[1756717367670,0.92588255,109590.0,109580.0,0.88366196]
[1756717367871,1.28668255,109590.0,109580.0,0.88366196]
[1756717369773,0.92588255,109590.0,109580.0,0.88366196]
[1756717371270,0.92588255,109590.0,109580.0,1.33571186]
[1756717371571,0.08516255,109590.0,109580.0,1.33571186]
[1756717371773,0.92568255,109590.0,109580.0,1.33571186]
[1756717371974,0.08516255,109590.0,109580.0,1.33571186]
[1756717372175,0.92568255,109590.0,109580.0,1.33571186]
[1756717372473,0.08516255,109590.0,109580.0,1.33571186]
[1756717372675,0.92568255,109590.0,109580.0,1.33571186]
[1756717374384,0.08516255,109590.0,109580.0,1.35635611]
[1756717374673,0.00213662,109590.0,109580.0,2.62472807]
[1756717374978,0.37241,109620.0,109610.0,0.06059]
[1756717375172,0.39332469,109620.0,109610.0,0.60852196]
[1756717375969,0.39332469,109620.0,109610.0,0.06059]
[1756717376172,0.39332469,109620.0,109610.0,0.23852196]
[1756717376369,0.39332469,109620.0,109610.0,0.06059]
[1756717376565,0.39332469,109620.0,109610.0,0.23852196]
[1756717376770,0.40258469,109620.0,109610.0,0.23852196]
[1756717377477,0.4025586,109620.0,109610.0,0.23852196]
[1756717377871,0.4025586,109620.0,109610.0,0.24746536]
[1756717378378,0.38167,109620.0,109610.0,0.24746536]
[1756717380681,0.40254545,109620.0,109610.0,0.24746536]
[1756717381377,0.40254545,109620.0,109610.0,0.0695334]
[1756717381578,0.40254545,109620.0,109610.0,0.24746536]
[1756717383076,1.24278545,109620.0,109610.0,0.59746536]
[1756717384081,1.22191,109620.0,109610.0,0.59746536]
[1756717384282,1.22191,109620.0,109610.0,0.24746536]
[1756717386082,1.22191,109620.0,109610.0,0.60746536]
[1756717386779,1.21991,109620.0,109610.0,0.6940334]
[1756717386980,1.21991,109620.0,109610.0,0.51196536]
[1756717387182,1.21991,109620.0,109610.0,0.88196536]
[1756717388280,1.21991,109620.0,109610.0,0.2979234]
[1756717388481,1.66872211,109620.0,109610.0,0.2645]
[1756717389582,1.66972211,109620.0,109610.0,0.2645]
[1756717390383,1.49179015,109620.0,109610.0,0.2645]
[1756717390586,0.65155015,109620.0,109610.0,0.28898]
[1756717390889,0.88087015,109620.0,109610.0,0.89213408]
[1756717391186,0.85999,109620.0,109610.0,0.89213408]
[1756717392093,0.85899,109620.0,109610.0,0.89213408]
[1756717392990,0.01887,109620.0,109610.0,0.89213408]
[1756717393290,0.84008,109620.0,109610.0,0.89213408]
[1756717393493,0.85169,109620.0,109610.0,0.89213408]
[1756717393693,0.85895,109620.0,109610.0,0.89213408]
[1756717394290,0.39849093,109630.0,109620.0,0.06059]
[1756717394492,1.25916944,109630.0,109620.0,0.55852196]
[1756717395089,0.41908944,109630.0,109620.0,0.55852196]
[1756717395484,1.24034851,109630.0,109620.0,0.55852196]
[1756717395683,1.24034851,109630.0,109620.0,0.57909188]
[1756717395878,1.24134851,109630.0,109620.0,0.57909188]
[1756717396588,0.04046851,109630.0,109620.0,1.20904044]
[1756717396791,0.001,109630.0,109620.0,1.45904044]
[1756717398491,0.001,109630.0,109620.0,1.72354044]
[1756717398892,1.22665372,109640.0,109630.0,0.05924]
[1756717398893,1.23826372,109640.0,109630.0,0.05924]
[1756717399093,1.25886158,109640.0,109630.0,0.60717196]
[1756717399688,1.25886158,109640.0,109630.0,0.23717196]
[1756717400295,1.25986158,109640.0,109630.0,0.23717196]
[1756717400596,1.26286158,109640.0,109630.0,0.05924]
[1756717401098,1.26286158,109640.0,109630.0,0.23717196]
[1756717403097,1.26286158,109640.0,109630.0,0.02385]
[1756717403292,1.26286158,109640.0,109630.0,0.20178196]
[1756717403699,1.26286158,109640.0,109630.0,0.56717196]
[1756717407794,0.42282158,109640.0,109630.0,0.56717196]
[1756717408097,1.26270158,109640.0,109630.0,0.56717196]
[1756717409101,0.05476158,109640.0,109630.0,0.83167196]
[1756717409302,0.89464158,109640.0,109630.0,0.92288026]
[1756717409501,0.89464158,109640.0,109630.0,1.28368026]
[1756717410098,0.90190158,109640.0,109630.0,0.92288026]
[1756717411003,0.89890158,109640.0,109630.0,0.92288026]
[1756717411196,0.90090158,109640.0,109630.0,0.92288026]
[1756717411897,0.06102158,109640.0,109630.0,0.92288026]
[1756717412195,0.88199158,109640.0,109630.0,1.28368026]
[1756717412401,0.88099158,109640.0,109630.0,1.28368026]
[1756717413597,0.04115158,109640.0,109630.0,1.28368026]
[1756717414503,0.02259786,109640.0,109630.0,2.37348026]
[1756717414697,0.002,109640.0,109630.0,2.37348026]
[1756717415197,0.002,109640.0,109630.0,2.55141222]
[1756717415399,0.34497,109660.0,109650.0,0.50629562]
[1756717415598,0.02059738,109660.0,109650.0,1.46159562]
[1756717415794,0.7197366,109670.0,109650.0,1.4316902]
[1756717415999,0.75194286,109670.0,109660.0,0.23717196]
[1756717416200,0.75194286,109670.0,109660.0,0.61717196]
[1756717416702,0.75194286,109670.0,109660.0,0.62611764]
[1756717417304,0.75394286,109670.0,109660.0,0.62611764]
[1756717419607,0.75394286,109670.0,109660.0,0.69845765]
[1756717420702,0.42058286,109670.0,109660.0,0.69845765]
[1756717421200,1.26022286,109670.0,109660.0,0.69845765]
[1756717422206,0.89942286,109670.0,109660.0,0.78964105]
[1756717422597,0.04091286,109670.0,109660.0,0.78964105]
[1756717422802,0.02259626,109670.0,109660.0,1.15044105]
[1756717423203,0.02259626,109670.0,109660.0,1.57837301]
[1756717423402,0.00726,109690.0,109670.0,0.0911667]
[1756717423604,0.04264182,109690.0,109680.0,0.50627062]
[1756717423809,0.04264182,109690.0,109680.0,0.83627062]
[1756717424812,0.04364182,109690.0,109680.0,0.83627062]
[1756717425205,0.04364182,109690.0,109680.0,0.65833866]
[1756717425407,0.04464182,109690.0,109680.0,0.65833866]
[1756717426106,0.04664182,109690.0,109680.0,0.56717196]
[1756717426305,0.04664182,109690.0,109680.0,0.38924]
[1756717426511,0.04664182,109690.0,109680.0,0.56717196]
[1756717426712,0.04464182,109690.0,109680.0,0.56717196]
[1756717426907,0.04664182,109690.0,109680.0,0.56717196]
[1756717428911,0.03938182,109690.0,109670.0,0.64529993]
[1756717429104,1.40300196,109680.0,109670.0,0.32934993]
[1756717429308,1.24564182,109680.0,109670.0,0.35414993]
[1756717429612,0.88484182,109680.0,109670.0,0.99325689]
[1756717429815,0.02057182,109680.0,109670.0,1.35405689]
[1756717430202,1.23907182,109690.0,109670.0,1.35405689]
[1756717430404,1.25188182,109690.0,109680.0,0.23758196]
[1756717430609,1.25188182,109690.0,109680.0,0.61758196]
[1756717430812,1.25188182,109690.0,109680.0,0.25758196]
[1756717431016,1.24988182,109690.0,109680.0,0.54758196]
[1756717431215,1.25088182,109690.0,109680.0,0.23758196]
[1756717431811,1.24988182,109690.0,109680.0,0.23758196]
[1756717432015,1.25188182,109690.0,109680.0,0.57758196]
[1756717432616,1.25488182,109690.0,109680.0,0.25758196]
[1756717436117,1.25488182,109690.0,109680.0,0.0294]
[1756717436719,1.25488182,109690.0,109680.0,0.0642]
[1756717437220,1.68281378,109690.0,109680.0,0.00455]
[1756717439418,1.43281378,109690.0,109680.0,0.00455]
[1756717440220,1.68281378,109690.0,109680.0,0.00455]
[1756717440524,0.01224,109670.0,109660.0,0.06859568]
[1756717440724,1.21652,109670.0,109660.0,0.38859568]
[1756717441020,1.23709182,109670.0,109660.0,0.56652764]
[1756717444024,1.23709182,109670.0,109660.0,0.53172764]
[1756717444223,1.23709182,109670.0,109660.0,0.56652764]
[1756717445025,1.23709182,109670.0,109660.0,0.38859568]
[1756717445322,1.25572413,109670.0,109660.0,0.35379568]
[1756717445525,1.43365609,109670.0,109660.0,0.06]
[1756717445726,1.43365609,109670.0,109660.0,0.08485]
[1756717445924,1.25572413,109670.0,109660.0,0.08485]
[1756717446426,1.25572413,109670.0,109660.0,0.09400742]
[1756717447128,1.25572413,109670.0,109660.0,0.08485]
[1756717447429,1.25572413,109670.0,109650.0,0.31928458]
[1756717447430,1.68365609,109670.0,109650.0,0.31928458]
[1756717447725,0.37304,109660.0,109650.0,0.29863908]
[1756717447920,0.39361182,109660.0,109650.0,0.08413908]
[1756717448120,0.39361182,109660.0,109650.0,0.11893908]
[1756717448321,0.39370088,109660.0,109650.0,0.11893908]
[1756717448521,0.39370088,109660.0,109650.0,0.37893908]
[1756717448721,1.23666088,109660.0,109650.0,0.37893908]
[1756717449130,1.23666088,109660.0,109650.0,0.11893908]
[1756717449325,1.23738088,109660.0,109650.0,0.40893908]
[1756717449525,1.23738088,109660.0,109650.0,0.58687104]
[1756717449926,1.23938088,109660.0,109650.0,0.58687104]
[1756717450224,0.86642088,109660.0,109650.0,1.4667947]
[1756717450431,0.86642088,109660.0,109650.0,1.014803]
[1756717450626,0.86642088,109660.0,109650.0,1.375603]
[1756717450828,0.86538088,109660.0,109650.0,1.014803]
[1756717451030,0.86538088,109660.0,109650.0,1.375603]
[1756717451232,0.02266088,109660.0,109650.0,1.375603]
[1756717451525,0.86326088,109660.0,109650.0,1.375603]
[1756717451931,0.86326088,109660.0,109650.0,1.279303]
[1756717452131,0.8426,109660.0,109650.0,1.640103]
[1756717452428,0.8426,109660.0,109650.0,1.279303]
[1756717453125,0.8426,109660.0,109650.0,0.92343908]
[1756717453327,0.39167231,109670.0,109660.0,0.05965]
[1756717453526,0.89384212,109670.0,109660.0,0.58758196]
[1756717453729,1.25464212,109670.0,109660.0,0.58758196]
[1756717454232,0.41232212,109670.0,109660.0,0.58758196]
[1756717454433,1.25548212,109670.0,109660.0,0.58758196]
[1756717454732,1.25748212,109670.0,109660.0,0.58758196]
[1756717455332,0.89668212,109670.0,109660.0,0.58758196]
[1756717455533,0.89568212,109670.0,109660.0,0.58758196]
[1756717455728,0.05352212,109670.0,109660.0,0.58758196]
[1756717455931,0.86812231,109670.0,109660.0,0.58758196]
[1756717456130,0.87283231,109670.0,109660.0,0.58758196]
[1756717456331,0.03087231,109670.0,109660.0,0.58758196]
[1756717456531,0.87303231,109670.0,109660.0,0.94838196]
[1756717457025,0.03930392,109670.0,109660.0,1.30955504]
[1756717457334,0.01863231,109670.0,109660.0,1.30955504]
[1756717458038,0.01863231,109670.0,109660.0,1.57405504]
[1756717458434,0.01863231,109670.0,109660.0,1.57505504]
[1756717459134,0.01863231,109670.0,109660.0,1.57605504]
[1756717460132,0.01863231,109670.0,109660.0,1.65042293]
[1756717461231,0.01863231,109670.0,109660.0,2.49250293]
[1756717462636,0.01863231,109670.0,109660.0,1.47249097]
[1756717462833,0.02334231,109670.0,109660.0,2.40107953]
[1756717463032,0.02334231,109670.0,109660.0,1.55923953]
[1756717463633,0.01863231,109670.0,109660.0,1.55923953]
[1756717464034,0.01863231,109670.0,109660.0,1.65042283]
[1756717467545,0.00471,109690.0,109670.0,0.03731]
[1756717467750,1.93976,109700.0,109690.0,0.03731]
[1756717467950,3.16283591,109700.0,109690.0,0.61876196]
[1756717468252,3.16283591,109700.0,109690.0,0.70992036]
[1756717468442,2.80203591,109700.0,109690.0,0.70992036]
[1756717468947,0.03291591,109700.0,109690.0,0.70992036]
[1756717469144,0.01524,109700.0,109690.0,0.70992036]
[1756717470252,0.01724,109700.0,109690.0,0.70992036]
[1756717472442,0.01253,109700.0,109690.0,0.5319884]
[1756717472646,0.005,109700.0,109690.0,1.33522036]
[1756717473047,0.005,109700.0,109690.0,1.58522036]
[1756717473448,0.01830211,109710.0,109700.0,0.0911501]
[1756717473645,0.01830211,109710.0,109700.0,1.50314402]
[1756717473846,0.84128,109720.0,109710.0,0.1146618]
[1756717474048,0.84128,109720.0,109710.0,1.20917794]
[1756717476455,0.86652,109720.0,109710.0,0.94010418]
[1756717476753,0.86752,109720.0,109710.0,0.94010418]
[1756717476949,0.86752,109720.0,109710.0,0.95239198]
[1756717477553,0.86652,109720.0,109710.0,0.95339198]
[1756717478253,0.00971,109740.0,109720.0,0.1284435]
[1756717478456,0.02524,109750.0,109740.0,0.1519469]
[1756717478660,0.60872,109760.0,109750.0,0.06083]
[1756717478959,0.62932705,109760.0,109750.0,0.23876196]
[1756717479256,0.62932705,109760.0,109750.0,0.57876196]
[1756717479653,0.62932705,109760.0,109750.0,0.23876196]
[1756717479850,0.62932705,109760.0,109750.0,0.60876196]
[1756717480156,0.61172,109760.0,109750.0,0.62917561]
[1756717480352,0.61172,109760.0,109750.0,0.04393365]
[1756717480561,1.06023183,109760.0,109750.0,0.02041365]
[1756717480856,1.06323183,109760.0,109750.0,0.04393365]
[1756717481060,0.88529987,109760.0,109750.0,0.02041365]
[1756717481259,0.86472,109760.0,109740.0,0.21524196]
[1756717481460,0.38604,109750.0,109740.0,0.23876196]
[1756717481762,0.38604,109750.0,109740.0,0.02352]
[1756717482260,0.63604,109750.0,109740.0,0.02352]
[1756717482851,0.63604,109750.0,109740.0,0.06083]
[1756717483257,0.63804,109750.0,109740.0,0.23876196]
[1756717484154,0.63804,109750.0,109740.0,0.20145196]
[1756717484456,0.02524,109740.0,109730.0,0.25870353]
[1756717484664,0.38604,109740.0,109730.0,0.59870353]
[1756717485365,0.38604,109740.0,109730.0,0.67213462]
[1756717485758,0.38704,109740.0,109730.0,0.67213462]
[1756717486460,0.001,109740.0,109730.0,1.55199178]
[1756717486760,0.001,109740.0,109730.0,1.37405982]
[1756717487360,0.003,109740.0,109730.0,1.37405982]
[1756717487965,0.003,109740.0,109730.0,2.21689982]
[1756717488162,0.003,109740.0,109730.0,2.39483178]
[1756717488660,0.003,109740.0,109730.0,2.21689982]
[1756717488858,0.003,109740.0,109730.0,2.03896786]
[1756717489058,0.003,109740.0,109730.0,2.21689982]
[1756717490472,0.003,109740.0,109730.0,1.28293462]
[1756717490661,0.01271,109740.0,109730.0,1.28293462]
[1756717491167,0.003,109740.0,109730.0,1.28293462]
[1756717491561,0.003,109740.0,109730.0,1.37405972]
[1756717492568,0.003,109740.0,109730.0,1.55199168]
[1756717493368,0.003,109740.0,109730.0,1.37405972]
[1756717495775,0.003,109740.0,109730.0,1.28293462]
[1756717496265,0.01271,109740.0,109730.0,1.10500266]
[1756717496471,0.01271,109740.0,109730.0,1.03293462]
[1756717497073,0.02824,109740.0,109730.0,0.67213462]
[1756717500173,0.27824,109740.0,109730.0,0.67213462]
[1756717500365,0.65969395,109740.0,109730.0,0.15420266]
[1756717500568,1.50553395,109740.0,109730.0,0.40213462]
[1756717500868,1.68346591,109740.0,109730.0,0.13083]
[1756717501074,1.7017597,109740.0,109730.0,0.02352]
[1756717501263,1.52382774,109740.0,109730.0,0.02352]
[1756717501669,1.52394774,109740.0,109730.0,0.05822]
[1756717501874,1.52394774,109740.0,109730.0,0.23615196]
[1756717502375,0.67798774,109740.0,109730.0,0.23615196]
[1756717502676,0.40274774,109740.0,109730.0,0.62794293]
[1756717503377,0.41827774,109740.0,109730.0,0.62794293]
[1756717503580,0.42798774,109740.0,109730.0,0.62794293]
[1756717505980,0.05747774,109740.0,109730.0,0.98874293]
[1756717506280,0.04194774,109740.0,109730.0,0.98874293]
[1756717506480,0.37909968,109760.0,109730.0,1.77229989]
[1756717506673,1.21559,109770.0,109760.0,0.0347]
[1756717506881,1.23152,109770.0,109760.0,0.55718196]
[1756717507273,0.42850915,109780.0,109760.0,0.55718196]
[1756717507479,0.40453261,109780.0,109770.0,0.41511392]
[1756717507676,0.40453261,109780.0,109770.0,0.54718196]
[1756717508477,0.41053261,109780.0,109770.0,0.54718196]
[1756717508783,0.41053261,109780.0,109770.0,0.55627781]
[1756717508970,0.40753261,109780.0,109770.0,0.55627781]
[1756717509376,0.41153261,109780.0,109770.0,0.55627781]
[1756717510876,0.00971,109770.0,109760.0,0.05539579]
[1756717511076,1.40889196,109770.0,109760.0,0.07994579]
[1756717511272,1.40889196,109770.0,109760.0,0.04524579]
[1756717511477,1.65889196,109770.0,109760.0,0.04524579]
[1756717511771,1.65889196,109770.0,109760.0,0.07994579]
[1756717512179,1.65989196,109770.0,109760.0,0.07994579]
[1756717512586,1.65989196,109770.0,109760.0,0.04524579]
[1756717512884,1.65989196,109770.0,109760.0,0.07994579]
[1756717513078,1.65989196,109770.0,109760.0,0.04524579]
[1756717513580,1.65989196,109770.0,109760.0,0.02069579]
[1756717513780,1.66089196,109770.0,109760.0,0.02069579]
[1756717514080,1.77904275,109770.0,109760.0,0.02069579]
[1756717514282,1.77904275,109770.0,109740.0,0.06464302]
[1756717514585,0.38604,109750.0,109740.0,0.07994906]
[1756717514778,1.23224,109750.0,109740.0,0.07994906]
[1756717515375,0.38604,109750.0,109740.0,0.08094906]
[1756717515576,1.2322,109750.0,109740.0,0.08094906]
[1756717515782,1.2322,109750.0,109740.0,0.09017949]
[1756717516677,0.38604,109750.0,109740.0,0.09017949]
[1756717516881,1.21679,109760.0,109740.0,0.92156224]
[1756717517082,1.23232,109760.0,109750.0,0.32063275]
[1756717517482,1.23232,109760.0,109750.0,0.35533275]
[1756717517680,1.23232,109760.0,109750.0,0.69533275]
[1756717518285,0.38604,109760.0,109750.0,0.69533275]
[1756717518484,1.25238068,109760.0,109750.0,0.69533275]
[1756717518684,1.25338068,109760.0,109750.0,0.69533275]
[1756717518987,0.40842068,109760.0,109750.0,0.69533275]
[1756717519375,0.002,109760.0,109750.0,1.03644115]
[1756717519579,0.002,109760.0,109750.0,1.39724115]
[1756717521188,0.001,109760.0,109750.0,1.39824115]
[1756717521581,0.82368,109770.0,109750.0,1.36354115]
[1756717521782,0.82368,109770.0,109760.0,0.71614275]
[1756717521978,0.82368,109770.0,109760.0,1.02614275]
[1756717522179,0.84584,109770.0,109760.0,1.02614275]
[1756717522689,0.85555,109770.0,109760.0,1.02614275]
[1756717524284,0.87108,109770.0,109760.0,1.02614275]
[1756717524483,0.87208,109770.0,109760.0,1.02614275]
[1756717524688,0.87308,109770.0,109760.0,1.02614275]
[1756717524890,0.02724,109770.0,109760.0,1.02614275]
[1756717525088,0.84784,109770.0,109760.0,1.11724285]
[1756717525689,0.002,109770.0,109760.0,1.11724285]
[1756717526192,0.002,109770.0,109760.0,1.02614275]
[1756717526892,0.002,109770.0,109760.0,1.11724285]
[1756717527194,0.002,109770.0,109760.0,1.02614275]
[1756717528287,0.01171,109770.0,109760.0,1.02614275]
[1756717528892,0.002,109770.0,109760.0,1.02614275]
[1756717529089,0.002,109770.0,109760.0,1.29064275]
[1756717529489,0.01171,109770.0,109760.0,1.29064275]
[1756717529692,0.002,109770.0,109760.0,1.29064275]
[1756717529887,0.01171,109770.0,109760.0,1.29064275]
[1756717531198,0.38804,109770.0,109760.0,0.32376]
[1756717531396,0.63804,109770.0,109760.0,0.32376]
[1756717532793,0.65843571,109770.0,109760.0,0.28747]
[1756717533194,0.65843571,109770.0,109760.0,0.32376]
[1756717535002,0.65843571,109770.0,109760.0,0.05926]
[1756717536003,0.65843571,109770.0,109760.0,0.29605815]
[1756717536997,0.40843571,109770.0,109760.0,0.05926]
[1756717537199,0.63552386,109770.0,109760.0,0.02297]
[1756717537806,0.64523386,109770.0,109760.0,0.02297]
[1756717538406,1.25267571,109770.0,109760.0,0.29605815]
[1756717538902,1.25267571,109770.0,109760.0,0.05926]
[1756717539303,1.48947386,109770.0,109760.0,0.02297]
[1756717540801,1.73947386,109770.0,109750.0,0.03629]
[1756717541008,0.62283815,109760.0,109750.0,0.02297]
[1756717541207,0.64323386,109760.0,109750.0,0.02297]
[1756717541798,0.02524,109750.0,109740.0,0.06849043]
[1756717542001,0.00971,109740.0,109730.0,0.13105097]
[1756717542204,1.48595136,109740.0,109730.0,0.12297]
[1756717542407,0.02524,109730.0,109720.0,0.3165796]
[1756717542609,1.25155571,109730.0,109720.0,0.6865796]
[1756717543304,0.40643571,109730.0,109720.0,0.6865796]
[1756717543508,1.25167571,109730.0,109720.0,0.6865796]
[1756717544101,1.25167571,109730.0,109720.0,0.81832747]
[1756717544303,1.25167571,109730.0,109720.0,0.82754741]
[1756717544505,1.25167571,109730.0,109720.0,0.61854741]
[1756717545210,0.89087571,109730.0,109720.0,0.61854741]
[1756717545508,1.23128,109730.0,109720.0,0.61854741]
[1756717547097,1.23128,109730.0,109720.0,0.32236751]
[1756717547300,1.23128,109730.0,109720.0,0.30184606]
[1756717547503,1.23128,109730.0,109720.0,0.26555606]
[1756717548109,1.23128,109730.0,109720.0,0.10555606]
[1756717548310,0.38604,109730.0,109720.0,0.49184606]
[1756717548508,1.23168,109730.0,109720.0,0.14184606]
[1756717548903,1.23168,109730.0,109720.0,0.74802596]
[1756717549313,0.37633,109730.0,109720.0,0.74802596]
[1756717549507,1.20628,109750.0,109740.0,0.06048]
[1756717549812,0.3608,109750.0,109740.0,0.7266599]
[1756717550014,1.20648,109750.0,109740.0,0.7266599]
[1756717550311,0.84568,109750.0,109740.0,0.7266599]
[1756717550908,0.84568,109750.0,109740.0,0.7276599]
[1756717551104,0.86121,109750.0,109740.0,0.7276599]
[1756717551305,1.23172,109750.0,109740.0,0.06148]
[1756717551510,1.23172,109750.0,109740.0,0.001]
[1756717551906,1.23172,109750.0,109740.0,0.02561]
[1756717552515,1.23172,109750.0,109740.0,0.3576599]
[1756717553017,1.23272,109750.0,109740.0,0.3566599]
[1756717553216,1.23272,109750.0,109740.0,0.06048]
[1756717553616,1.23272,109750.0,109740.0,0.39048]
[1756717553815,1.23372,109750.0,109740.0,0.6866599]
[1756717554516,1.23272,109750.0,109740.0,0.6876599]
[1756717554714,1.23172,109750.0,109740.0,0.6876599]
[1756717556024,1.23172,109750.0,109740.0,0.6866599]
[1756717556225,1.23272,109750.0,109740.0,0.6866599]
[1756717557331,1.23372,109750.0,109740.0,0.6866599]
[1756717558121,1.23372,109750.0,109730.0,0.3320499]
[1756717558424,0.02524,109740.0,109730.0,0.6966599]
[1756717559316,0.02524,109740.0,109730.0,0.6976599]
[1756717560623,0.38604,109740.0,109730.0,0.06148]
[1756717560813,0.40472331,109740.0,109730.0,0.02561]
[1756717561829,0.40472331,109740.0,109730.0,0.06148]
[1756717562418,0.40472331,109740.0,109730.0,0.02561]
[1756717562726,0.40672331,109740.0,109730.0,0.02461]
[1756717562921,0.65672331,109740.0,109720.0,0.13770547]
[1756717563127,1.23232,109730.0,109720.0,0.50231547]
[1756717563822,1.23232,109730.0,109720.0,0.44619606]
[1756717564024,1.23232,109730.0,109720.0,0.43697612]
[1756717564224,1.23232,109730.0,109720.0,0.21697612]
[1756717564431,1.23232,109730.0,109720.0,0.22602749]
[1756717564620,1.23232,109730.0,109720.0,0.12]
[1756717564820,1.23232,109730.0,109710.0,0.05641222]
[1756717565127,1.23232,109730.0,109710.0,0.49102222]
[1756717565128,0.38604,109720.0,109710.0,0.49102222]
[1756717565819,0.38604,109720.0,109710.0,0.56424064]
[1756717566018,0.38604,109720.0,109710.0,0.80122826]
[1756717566518,0.38604,109720.0,109710.0,0.57448661]
[1756717566720,0.38604,109720.0,109710.0,0.81147423]
[1756717567516,0.3608,109720.0,109710.0,1.04846185]
[1756717567722,0.84656,109730.0,109720.0,0.03587]
[1756717567922,0.84656,109730.0,109720.0,0.66746762]
[1756717568122,0.86209,109730.0,109720.0,0.66746762]
[1756717568326,0.8718,109730.0,109720.0,0.66746762]
[1756717568530,1.2326,109730.0,109720.0,0.66746762]
[1756717568927,1.2336,109730.0,109720.0,0.66746762]
[1756717569126,1.2346,109730.0,109720.0,0.66746762]
[1756717571630,1.25491938,109730.0,109720.0,0.66746762]
[1756717575236,0.89411938,109730.0,109720.0,0.29746762]
[1756717575433,1.25491938,109730.0,109720.0,0.29746762]
[1756717578538,1.25347938,109730.0,109720.0,0.29746762]
[1756717580643,1.25347938,109730.0,109720.0,0.26159762]
[1756717581434,1.25347938,109730.0,109720.0,0.02461]
[1756717581751,0.02524,109720.0,109710.0,0.39035661]
[1756717581936,0.38604,109720.0,109710.0,0.43035661]
[1756717582237,0.40648678,109720.0,109710.0,0.43035661]
[1756717582544,0.40648678,109720.0,109710.0,0.16585661]
[1756717583141,0.8934744,109720.0,109710.0,0.00924597]
[1756717583439,0.02524,109710.0,109700.0,0.05881]
[1756717583638,1.23164,109710.0,109700.0,0.40881]
[1756717583833,1.23164,109710.0,109700.0,0.48008818]
[1756717584240,1.23164,109710.0,109700.0,0.7170758]
[1756717584639,1.23164,109710.0,109700.0,0.7180758]